[Event "Early-Titled-Tuesday-Blitz-March-26-2024"]
[Site "Chess.com"]
[Date "2024.03.26"]
[Round "11"]
[White "ArchibaldCerveza29"]
[Black "AccioChess"]
[Result "0-1"]
[WhiteElo "2372"]
[BlackElo "2515"]
[TimeControl "180+1"]
[EndTime "10:04:36 PDT"]
[Termination "AccioChess won on time"]

1. e4 {[%clk 0:03:00.9]} 1... e6 {[%clk 0:03:00.1]} 2. d4 {[%clk 0:02:59.1]}
2... d5 {[%clk 0:03:01]} 3. Nd2 {[%clk 0:02:57.3]} 3... c5 {[%clk 0:03:00.4]} 4.
exd5 {[%clk 0:02:56.9]} 4... exd5 {[%clk 0:03:01.3]} 5. Ngf3 {[%clk 0:02:56.7]}
5... Nf6 {[%clk 0:03:01.5]} 6. Bb5+ {[%clk 0:02:41.7]} 6... Bd7 {[%clk 0:02:58]}
7. Qe2+ {[%clk 0:02:36.1]} 7... Qe7 {[%clk 0:02:57.8]} 8. Ne5 {[%clk 0:02:32.4]}
8... Nc6 {[%clk 0:02:39.7]} 9. Nxd7 {[%clk 0:02:29.3]} 9... Qxe2+ {[%clk
0:02:38.2]} 10. Bxe2 {[%clk 0:02:26.5]} 10... Kxd7 {[%clk 0:02:34.6]} 11. dxc5
{[%clk 0:02:25.8]} 11... Bxc5 {[%clk 0:02:21.5]} 12. O-O {[%clk 0:02:24.5]}
12... Rhe8 {[%clk 0:02:20.9]} 13. Bf3 {[%clk 0:02:17.2]} 13... Ne5 {[%clk
0:01:53.2]} 14. Nb3 {[%clk 0:01:46.9]} 14... Nxf3+ {[%clk 0:01:51.1]} 15. gxf3
{[%clk 0:01:47.8]} 15... Bb6 {[%clk 0:01:51]} 16. Bg5 {[%clk 0:01:45.7]} 16...
Nh5 {[%clk 0:01:50.1]} 17. Rad1 {[%clk 0:01:43.8]} 17... Re5 {[%clk 0:01:45.5]}
18. Bh4 {[%clk 0:01:35.2]} 18... Kc6 {[%clk 0:01:36.8]} 19. Bg3 {[%clk
0:01:29.2]} 19... Re2 {[%clk 0:01:32.2]} 20. Rd2 {[%clk 0:01:25.8]} 20... Rae8
{[%clk 0:01:30.6]} 21. c3 {[%clk 0:00:32.2]} 21... Rxd2 {[%clk 0:01:26.4]} 22.
Nxd2 {[%clk 0:00:31.8]} 22... Re2 {[%clk 0:01:26.8]} 23. Nb3 {[%clk 0:00:23.8]}
23... Rxb2 {[%clk 0:01:26.6]} 24. Be5 {[%clk 0:00:23.9]} 24... Rxa2 {[%clk
0:01:23.2]} 25. Nd4+ {[%clk 0:00:14.6]} 25... Kd7 {[%clk 0:01:14.5]} 26. Rb1
{[%clk 0:00:09.7]} 26... f6 {[%clk 0:01:03.3]} 27. Bg3 {[%clk 0:00:09.3]} 27...
Nxg3 {[%clk 0:00:59.7]} 28. hxg3 {[%clk 0:00:09]} 28... Rd2 {[%clk 0:00:47.5]}
29. Rb4 {[%clk 0:00:08.6]} 29... Bxd4 {[%clk 0:00:45.6]} 30. cxd4 {[%clk
0:00:08.5]} 30... Kc6 {[%clk 0:00:45.8]} 31. Kg2 {[%clk 0:00:08.1]} 31... a5
{[%clk 0:00:44.1]} 32. Ra4 {[%clk 0:00:04.6]} 32... Kb5 {[%clk 0:00:44.1]} 33.
Ra1 {[%clk 0:00:04.8]} 33... Rxd4 {[%clk 0:00:43]} 34. f4 {[%clk 0:00:05.7]}
34... a4 {[%clk 0:00:42.9]} 35. f5 {[%clk 0:00:06.1]} 35... Kb4 {[%clk
0:00:42.1]} 36. Rb1+ {[%clk 0:00:06.5]} 36... Kc3 {[%clk 0:00:41.2]} 37. Rxb7
{[%clk 0:00:06.8]} 37... a3 {[%clk 0:00:40.9]} 38. Ra7 {[%clk 0:00:07]} 38...
Kb3 {[%clk 0:00:40.6]} 39. Rxg7 {[%clk 0:00:02.2]} 39... a2 {[%clk 0:00:40.6]}
40. Rb7+ {[%clk 0:00:02.4]} 40... Rb4 {[%clk 0:00:40.6]} 41. Ra7 {[%clk
0:00:02.4]} 41... Ra4 {[%clk 0:00:41]} 42. Rb7+ {[%clk 0:00:03]} 42... Kc2
{[%clk 0:00:40.2]} 43. Rc7+ {[%clk 0:00:02.5]} 43... Kd2 {[%clk 0:00:40.5]} 44.
Rb7 {[%clk 0:00:01.4]} 44... a1=Q {[%clk 0:00:39.8]} 0-1

[Event "Early-Titled-Tuesday-Blitz-March-26-2024"]
[Site "Chess.com"]
[Date "2024.03.26"]
[Round "11"]
[White "arnash_bauyrzhan"]
[Black "Boorchess"]
[Result "0-1"]
[WhiteElo "2361"]
[BlackElo "2533"]
[TimeControl "180+1"]
[EndTime "10:04:36 PDT"]
[Termination "Boorchess won by checkmate"]

1. e4 {[%clk 0:03:00.9]} 1... e5 {[%clk 0:02:58.3]} 2. Nf3 {[%clk 0:03:00.5]}
2... Nf6 {[%clk 0:02:58.1]} 3. Nxe5 {[%clk 0:02:58.1]} 3... d6 {[%clk
0:02:58.3]} 4. Nf3 {[%clk 0:02:58]} 4... Nxe4 {[%clk 0:02:58.5]} 5. d4 {[%clk
0:02:56.7]} 5... d5 {[%clk 0:02:58.1]} 6. Bd3 {[%clk 0:02:56.1]} 6... Bd6 {[%clk
0:02:58.4]} 7. O-O {[%clk 0:02:55.9]} 7... O-O {[%clk 0:02:58.7]} 8. c4 {[%clk
0:02:56.1]} 8... c6 {[%clk 0:02:58.8]} 9. cxd5 {[%clk 0:02:55.4]} 9... cxd5
{[%clk 0:02:58.7]} 10. Nc3 {[%clk 0:02:55.6]} 10... Nxc3 {[%clk 0:02:57.2]} 11.
bxc3 {[%clk 0:02:56]} 11... Bg4 {[%clk 0:02:49.9]} 12. Rb1 {[%clk 0:02:55.6]}
12... Nd7 {[%clk 0:02:49.8]} 13. Rb5 {[%clk 0:02:44.6]} 13... Nb6 {[%clk
0:02:43.7]} 14. h3 {[%clk 0:02:42.5]} 14... Bd7 {[%clk 0:02:40.7]} 15. Rb1
{[%clk 0:02:35.9]} 15... Rc8 {[%clk 0:02:27.3]} 16. Bd2 {[%clk 0:02:32.5]} 16...
h6 {[%clk 0:02:19.3]} 17. Re1 {[%clk 0:02:15.7]} 17... Re8 {[%clk 0:02:08.7]}
18. Rxe8+ {[%clk 0:01:51.2]} 18... Qxe8 {[%clk 0:01:58.3]} 19. Qe1 {[%clk
0:01:36.9]} 19... Qxe1+ {[%clk 0:01:51.8]} 20. Bxe1 {[%clk 0:01:36.9]} 20... Rc7
{[%clk 0:01:47.4]} 21. Bb5 {[%clk 0:01:29.5]} 21... Bf5 {[%clk 0:01:41.1]} 22.
Rb2 {[%clk 0:01:24.2]} 22... Kf8 {[%clk 0:01:26.4]} 23. a4 {[%clk 0:01:23.7]}
23... Nc4 {[%clk 0:01:04.1]} 24. Bxc4 {[%clk 0:01:22]} 24... dxc4 {[%clk
0:01:04.1]} 25. Bd2 {[%clk 0:01:10.6]} 25... b6 {[%clk 0:00:57]} 26. Ne5 {[%clk
0:01:02.4]} 26... Bxe5 {[%clk 0:00:46.6]} 27. dxe5 {[%clk 0:01:02.5]} 27... Rd7
{[%clk 0:00:39.6]} 28. Be3 {[%clk 0:00:57.2]} 28... Rd1+ {[%clk 0:00:39.4]} 29.
Kh2 {[%clk 0:00:57]} 29... Ra1 {[%clk 0:00:39.1]} 30. Rb4 {[%clk 0:00:56.2]}
30... Be6 {[%clk 0:00:38.8]} 31. g4 {[%clk 0:00:46.1]} 31... Ke8 {[%clk
0:00:33.2]} 32. Bd4 {[%clk 0:00:45.7]} 32... Kd7 {[%clk 0:00:31.8]} 33. f4
{[%clk 0:00:42.4]} 33... Kc6 {[%clk 0:00:26.1]} 34. f5 {[%clk 0:00:42.4]} 34...
Bd5 {[%clk 0:00:26.2]} 35. e6 {[%clk 0:00:38.7]} 35... fxe6 {[%clk 0:00:25]} 36.
fxe6 {[%clk 0:00:33.3]} 36... g5 {[%clk 0:00:17.7]} 37. e7 {[%clk 0:00:29.4]}
37... Kd7 {[%clk 0:00:14.1]} 38. Bf6 {[%clk 0:00:29]} 38... Ra2+ {[%clk
0:00:10.9]} 39. Kg3 {[%clk 0:00:28.4]} 39... Rg2# {[%clk 0:00:10.3]} 0-1

[Event "Early-Titled-Tuesday-Blitz-March-26-2024"]
[Site "Chess.com"]
[Date "2024.03.26"]
[Round "11"]
[White "Elegance_Riks"]
[Black "Boundless_Strike"]
[Result "1-0"]
[WhiteElo "2781"]
[BlackElo "2615"]
[TimeControl "180+1"]
[EndTime "10:04:37 PDT"]
[Termination "Elegance_Riks won on time"]

1. Nf3 {[%clk 0:03:00.9]} 1... d6 {[%clk 0:02:59.6]} 2. d4 {[%clk 0:02:59.5]}
2... e5 {[%clk 0:03:00.5]} 3. dxe5 {[%clk 0:02:59.2]} 3... Bg4 {[%clk
0:03:01.3]} 4. g3 {[%clk 0:02:50.2]} 4... Nc6 {[%clk 0:02:59]} 5. exd6 {[%clk
0:02:46.6]} 5... Bxd6 {[%clk 0:02:59.1]} 6. Bg2 {[%clk 0:02:46.9]} 6... Qe7
{[%clk 0:02:59.5]} 7. O-O {[%clk 0:02:46.2]} 7... O-O-O {[%clk 0:02:59.7]} 8.
Bd2 {[%clk 0:02:23.8]} 8... h5 {[%clk 0:02:51.8]} 9. h4 {[%clk 0:02:18]} 9... f6
{[%clk 0:02:49.3]} 10. Qc1 {[%clk 0:02:18.2]} 10... g5 {[%clk 0:02:42.4]} 11.
hxg5 {[%clk 0:02:17]} 11... h4 {[%clk 0:02:42.6]} 12. Nxh4 {[%clk 0:01:36.2]}
12... Qe6 {[%clk 0:00:57.8]} 13. Nc3 {[%clk 0:01:23.5]} 13... Bh3 {[%clk
0:00:57.3]} 14. Bd5 {[%clk 0:01:05.7]} 14... Qd7 {[%clk 0:00:49.5]} 15. Ng6
{[%clk 0:01:00]} 15... Rh7 {[%clk 0:00:35.4]} 16. Nf4 {[%clk 0:00:53]} 16... Nd4
{[%clk 0:00:23.8]} 17. Be3 {[%clk 0:00:44.7]} 17... Bxf4 {[%clk 0:00:23.5]} 18.
Bxf4 {[%clk 0:00:42.6]} 18... Bxf1 {[%clk 0:00:15.7]} 19. Qxf1 {[%clk
0:00:40.8]} 19... c6 {[%clk 0:00:05.7]} 20. Be4 {[%clk 0:00:24.6]} 20... Rh8
{[%clk 0:00:05.9]} 21. Rd1 {[%clk 0:00:23.3]} 21... Qe6 {[%clk 0:00:05.1]} 22.
Be3 {[%clk 0:00:18.9]} 22... Nf5 {[%clk 0:00:04]} 23. Rxd8+ {[%clk 0:00:17.8]}
23... Kxd8 {[%clk 0:00:04.9]} 24. Qd1+ {[%clk 0:00:17.3]} 24... Nd6 {[%clk
0:00:04.7]} 25. Bg2 {[%clk 0:00:12.8]} 25... Kc7 {[%clk 0:00:04.5]} 26. Qd4
{[%clk 0:00:12]} 26... b6 {[%clk 0:00:03.1]} 27. Bf4 {[%clk 0:00:12.2]} 1-0

[Event "Early-Titled-Tuesday-Blitz-March-26-2024"]
[Site "Chess.com"]
[Date "2024.03.26"]
[Round "11"]
[White "quizden37"]
[Black "Revan_2002"]
[Result "0-1"]
[WhiteElo "2835"]
[BlackElo "2625"]
[TimeControl "180+1"]
[EndTime "10:04:38 PDT"]
[Termination "Revan_2002 won by resignation"]

1. Nf3 {[%clk 0:03:00.9]} 1... g6 {[%clk 0:02:56.9]} 2. c4 {[%clk 0:03:00.6]}
2... Bg7 {[%clk 0:02:57.3]} 3. Nc3 {[%clk 0:03:01.5]} 3... d6 {[%clk 0:02:57.5]}
4. g3 {[%clk 0:03:02.1]} 4... Nc6 {[%clk 0:02:57.8]} 5. Bg2 {[%clk 0:03:02.8]}
5... e5 {[%clk 0:02:58.5]} 6. O-O {[%clk 0:03:03.2]} 6... Nge7 {[%clk
0:02:59.1]} 7. b3 {[%clk 0:03:03.8]} 7... O-O {[%clk 0:02:59.7]} 8. Bb2 {[%clk
0:03:04.4]} 8... Be6 {[%clk 0:03:00.1]} 9. e3 {[%clk 0:03:04.7]} 9... Qd7 {[%clk
0:03:00]} 10. d4 {[%clk 0:03:05]} 10... Bh3 {[%clk 0:02:59.2]} 11. dxe5 {[%clk
0:03:02.6]} 11... Bxg2 {[%clk 0:02:57.2]} 12. Kxg2 {[%clk 0:03:03.5]} 12... Nxe5
{[%clk 0:02:57.6]} 13. Nd5 {[%clk 0:02:55.7]} 13... Nxd5 {[%clk 0:02:47.7]} 14.
Nxe5 {[%clk 0:02:51.1]} 14... Nxe3+ {[%clk 0:02:41.4]} 15. fxe3 {[%clk
0:02:45.9]} 15... Bxe5 {[%clk 0:02:40.5]} 16. Bxe5 {[%clk 0:02:46.2]} 16... Qc6+
{[%clk 0:02:40.7]} 17. Qd5 {[%clk 0:02:45.9]} 17... Qxd5+ {[%clk 0:02:31.2]} 18.
cxd5 {[%clk 0:02:46]} 18... dxe5 {[%clk 0:02:31.8]} 19. Rac1 {[%clk 0:02:46]}
19... Rac8 {[%clk 0:02:32.3]} 20. Rc5 {[%clk 0:02:46.3]} 20... Rfd8 {[%clk
0:02:29.9]} 21. Rfc1 {[%clk 0:02:46]} 21... Rd7 {[%clk 0:02:21.3]} 22. Kf3
{[%clk 0:02:46]} 22... f6 {[%clk 0:02:09.8]} 23. Ke4 {[%clk 0:02:46.1]} 23...
Kf7 {[%clk 0:02:08.8]} 24. g4 {[%clk 0:02:46.9]} 24... Ke7 {[%clk 0:02:04.6]}
25. g5 {[%clk 0:02:47.2]} 25... f5+ {[%clk 0:01:50.2]} 26. Kxe5 {[%clk
0:02:47.1]} 26... Re8 {[%clk 0:01:50.8]} 27. R1c4 {[%clk 0:02:12.2]} 27... Kd8+
{[%clk 0:01:36.4]} 28. Kf4 {[%clk 0:02:10.4]} 28... Rde7 {[%clk 0:01:29.5]} 29.
Rc3 {[%clk 0:02:08.9]} 29... Re4+ {[%clk 0:01:26.5]} 30. Kf3 {[%clk 0:02:09.1]}
30... R8e7 {[%clk 0:01:27]} 31. a4 {[%clk 0:01:57.2]} 31... Rd7 {[%clk
0:01:17.3]} 32. d6 {[%clk 0:01:54.3]} 32... c6 {[%clk 0:01:15]} 33. b4 {[%clk
0:01:49.6]} 33... Rxb4 {[%clk 0:01:10.1]} 34. a5 {[%clk 0:01:47.5]} 34... a6
{[%clk 0:01:05.5]} 35. Rd3 {[%clk 0:01:47.8]} 35... Re4 {[%clk 0:00:54.5]} 36.
Rc2 {[%clk 0:01:40.5]} 36... Re5 {[%clk 0:00:45.3]} 37. Ra2 {[%clk 0:01:39.1]}
37... Ke8 {[%clk 0:00:43.1]} 38. Kf4 {[%clk 0:01:39.5]} 38... Rb5 {[%clk
0:00:38.6]} 39. Ra4 {[%clk 0:01:25.9]} 39... Kf7 {[%clk 0:00:37.5]} 40. e4
{[%clk 0:01:26.5]} 40... Ke6 {[%clk 0:00:36.3]} 41. exf5+ {[%clk 0:01:26.3]}
41... Rxf5+ {[%clk 0:00:35.5]} 42. Kg4 {[%clk 0:01:26.8]} 42... Rxd6 {[%clk
0:00:35]} 43. Re4+ {[%clk 0:01:27.5]} 43... Kd7 {[%clk 0:00:20.4]} 44. Rb3
{[%clk 0:01:27.7]} 44... Rb5 {[%clk 0:00:17.1]} 45. Rxb5 {[%clk 0:01:27.9]}
45... axb5 {[%clk 0:00:13.9]} 46. Kf4 {[%clk 0:01:28.2]} 46... Re6 {[%clk
0:00:13.6]} 47. Rd4+ {[%clk 0:01:28]} 47... Kc7 {[%clk 0:00:13.5]} 48. h4 {[%clk
0:01:28]} 48... Re7 {[%clk 0:00:10.5]} 49. Rd1 {[%clk 0:01:14.2]} 49... c5
{[%clk 0:00:10.8]} 50. Rd5 {[%clk 0:01:11.6]} 50... Kc6 {[%clk 0:00:10.8]} 51.
Rd8 {[%clk 0:01:12.1]} 51... b4 {[%clk 0:00:11.3]} 52. Rc8+ {[%clk 0:01:11.7]}
52... Kb5 {[%clk 0:00:11.5]} 53. Ra8 {[%clk 0:01:10.9]} 53... b3 {[%clk
0:00:10.7]} 0-1

[Event "Early-Titled-Tuesday-Blitz-March-26-2024"]
[Site "Chess.com"]
[Date "2024.03.26"]
[Round "11"]
[White "Byniolus"]
[Black "lucasran"]
[Result "1-0"]
[WhiteElo "2735"]
[BlackElo "2611"]
[TimeControl "180+1"]
[EndTime "10:04:40 PDT"]
[Termination "Byniolus won by resignation"]

1. e4 {[%clk 0:03:00.9]} 1... e5 {[%clk 0:02:42.9]} 2. Nf3 {[%clk 0:02:59.5]}
2... Nc6 {[%clk 0:02:43]} 3. Be2 {[%clk 0:02:59.4]} 3... Nf6 {[%clk 0:02:39.1]}
4. d3 {[%clk 0:02:59.7]} 4... Bc5 {[%clk 0:02:36.1]} 5. O-O {[%clk 0:02:59.3]}
5... d6 {[%clk 0:02:36.1]} 6. c3 {[%clk 0:02:59.1]} 6... O-O {[%clk 0:02:35]} 7.
b4 {[%clk 0:02:52.3]} 7... Bb6 {[%clk 0:02:35]} 8. Nbd2 {[%clk 0:02:52.6]} 8...
h6 {[%clk 0:02:26.7]} 9. Nc4 {[%clk 0:02:51.8]} 9... Be6 {[%clk 0:02:25.8]} 10.
Qc2 {[%clk 0:02:50.8]} 10... Ne7 {[%clk 0:02:22]} 11. a4 {[%clk 0:02:47.6]}
11... c6 {[%clk 0:01:45.4]} 12. Nxb6 {[%clk 0:02:43.6]} 12... axb6 {[%clk
0:01:30.2]} 13. d4 {[%clk 0:02:36.8]} 13... Ng6 {[%clk 0:01:29.2]} 14. Rd1
{[%clk 0:02:33.7]} 14... Qc7 {[%clk 0:01:24.2]} 15. h3 {[%clk 0:02:28.6]} 15...
Rfe8 {[%clk 0:01:23.3]} 16. Be3 {[%clk 0:02:26.3]} 16... d5 {[%clk 0:00:57.3]}
17. Nxe5 {[%clk 0:02:11.1]} 17... Nxe5 {[%clk 0:00:55.7]} 18. dxe5 {[%clk
0:02:11.3]} 18... Qxe5 {[%clk 0:00:55.6]} 19. Bxb6 {[%clk 0:02:02.1]} 19... Nxe4
{[%clk 0:00:44.3]} 20. Bd3 {[%clk 0:01:55.7]} 20... Nf6 {[%clk 0:00:32.6]} 21.
Re1 {[%clk 0:01:43]} 21... Qd6 {[%clk 0:00:30.3]} 22. Re3 {[%clk 0:01:26.4]}
22... Bd7 {[%clk 0:00:24.1]} 23. Rae1 {[%clk 0:01:19.6]} 23... Rxe3 {[%clk
0:00:23.5]} 24. Rxe3 {[%clk 0:01:20.5]} 24... Re8 {[%clk 0:00:23.4]} 25. Qe2
{[%clk 0:01:15.3]} 25... Rxe3 {[%clk 0:00:22.3]} 26. Qxe3 {[%clk 0:01:16.2]}
26... Qe6 {[%clk 0:00:22.3]} 27. a5 {[%clk 0:01:05]} 27... Qxe3 {[%clk 0:00:20]}
28. Bxe3 {[%clk 0:01:05.9]} 28... Bc8 {[%clk 0:00:19]} 29. f3 {[%clk 0:01:05.5]}
29... Ne8 {[%clk 0:00:11.4]} 30. Bf4 {[%clk 0:01:02.9]} 30... Kf8 {[%clk
0:00:09.4]} 31. Kf2 {[%clk 0:01:03.5]} 31... Ke7 {[%clk 0:00:09.7]} 32. Ke3
{[%clk 0:01:04.3]} 32... Nf6 {[%clk 0:00:05.5]} 33. Kd4 {[%clk 0:01:02.5]} 33...
Be6 {[%clk 0:00:04.8]} 34. Be5 {[%clk 0:00:56.9]} 34... Ne8 {[%clk 0:00:01.9]}
35. Kc5 {[%clk 0:00:56]} 35... Kd7 {[%clk 0:00:01.8]} 36. Kb6 {[%clk 0:00:54.9]}
36... Kc8 {[%clk 0:00:01.6]} 37. a6 {[%clk 0:00:52.4]} 37... bxa6 {[%clk
0:00:02.5]} 38. Kxc6 {[%clk 0:00:53.2]} 38... f6 {[%clk 0:00:02.8]} 39. Bxa6+
{[%clk 0:00:52.3]} 39... Kd8 {[%clk 0:00:02.9]} 40. Bg3 {[%clk 0:00:49]} 40...
Ke7 {[%clk 0:00:03.4]} 41. b5 {[%clk 0:00:45.8]} 41... Bd7+ {[%clk 0:00:03.8]}
42. Kc5 {[%clk 0:00:46.5]} 42... f5 {[%clk 0:00:01.8]} 43. b6 {[%clk 0:00:45.9]}
43... Nf6 {[%clk 0:00:02.3]} 44. b7 {[%clk 0:00:45]} 44... Be6 {[%clk
0:00:02.2]} 45. Bb5 {[%clk 0:00:43]} 45... Nd7+ {[%clk 0:00:02.2]} 46. Bxd7
{[%clk 0:00:43.4]} 46... Kxd7 {[%clk 0:00:03.1]} 47. b8=Q {[%clk 0:00:44.3]} 1-0

[Event "Early-Titled-Tuesday-Blitz-March-26-2024"]
[Site "Chess.com"]
[Date "2024.03.26"]
[Round "11"]
[White "Shield12"]
[Black "Yaacovn"]
[Result "1-0"]
[WhiteElo "3009"]
[BlackElo "2920"]
[TimeControl "180+1"]
[EndTime "10:04:43 PDT"]
[Termination "Shield12 won on time"]

1. e4 {[%clk 0:03:00.9]} 1... c6 {[%clk 0:02:28.9]} 2. Nf3 {[%clk 0:03:00.8]}
2... d5 {[%clk 0:02:29.8]} 3. Nc3 {[%clk 0:03:01.5]} 3... dxe4 {[%clk
0:02:30.1]} 4. Nxe4 {[%clk 0:03:02.4]} 4... Nf6 {[%clk 0:02:30.9]} 5. Qe2 {[%clk
0:03:02.8]} 5... Bg4 {[%clk 0:02:30.3]} 6. h3 {[%clk 0:03:00.2]} 6... Bxf3
{[%clk 0:02:29.8]} 7. Nxf6+ {[%clk 0:02:59.5]} 7... gxf6 {[%clk 0:02:30]} 8.
Qxf3 {[%clk 0:03:00.4]} 8... Qd5 {[%clk 0:02:30.6]} 9. Be2 {[%clk 0:02:56.7]}
9... Nd7 {[%clk 0:02:28.8]} 10. c3 {[%clk 0:02:51.2]} 10... Rg8 {[%clk
0:02:24.5]} 11. g3 {[%clk 0:02:50]} 11... O-O-O {[%clk 0:02:20.8]} 12. d4 {[%clk
0:02:49]} 12... e6 {[%clk 0:02:15.3]} 13. Be3 {[%clk 0:02:45.9]} 13... f5 {[%clk
0:02:13.8]} 14. Qxd5 {[%clk 0:02:32.9]} 14... cxd5 {[%clk 0:02:05.6]} 15. g4
{[%clk 0:02:33.4]} 15... fxg4 {[%clk 0:01:59.7]} 16. hxg4 {[%clk 0:02:33.5]}
16... Nf6 {[%clk 0:01:53.3]} 17. g5 {[%clk 0:02:19.3]} 17... Ne4 {[%clk
0:01:35.5]} 18. Rxh7 {[%clk 0:02:18.8]} 18... Nxg5 {[%clk 0:01:33]} 19. Bxg5
{[%clk 0:02:19.7]} 19... Rxg5 {[%clk 0:01:33.5]} 20. Rxf7 {[%clk 0:02:20.6]}
20... Bd6 {[%clk 0:00:52.1]} 21. Kd2 {[%clk 0:02:17.3]} 21... Rf8 {[%clk
0:00:48.8]} 22. Rxf8+ {[%clk 0:02:16.5]} 22... Bxf8 {[%clk 0:00:49.7]} 23. Rh1
{[%clk 0:02:16.2]} 23... Kd7 {[%clk 0:00:48.7]} 24. Rh8 {[%clk 0:02:14.5]} 24...
Rf5 {[%clk 0:00:42.7]} 25. Rh7+ {[%clk 0:02:06.8]} 25... Be7 {[%clk 0:00:42]}
26. Ke3 {[%clk 0:02:04.8]} 26... Kd6 {[%clk 0:00:41.3]} 27. Bg4 {[%clk
0:02:03.6]} 27... Rf8 {[%clk 0:00:37.7]} 28. f4 {[%clk 0:02:00.9]} 28... Rg8
{[%clk 0:00:34.4]} 29. Kf3 {[%clk 0:01:59.8]} 29... Rf8 {[%clk 0:00:34.5]} 30.
Rg7 {[%clk 0:01:58.4]} 30... b6 {[%clk 0:00:31.1]} 31. Ke3 {[%clk 0:01:54.7]}
31... a5 {[%clk 0:00:27.4]} 32. a3 {[%clk 0:01:51.7]} 32... b5 {[%clk
0:00:26.6]} 33. Be2 {[%clk 0:01:43.4]} 33... b4 {[%clk 0:00:25.8]} 34. axb4
{[%clk 0:01:39.2]} 34... axb4 {[%clk 0:00:26.7]} 35. cxb4 {[%clk 0:01:40.1]}
35... Rh8 {[%clk 0:00:24.8]} 36. Bg4 {[%clk 0:01:37]} 36... Rh1 {[%clk
0:00:18.6]} 37. Rg6 {[%clk 0:01:30]} 37... Re1+ {[%clk 0:00:18.2]} 38. Kd3
{[%clk 0:01:29.9]} 38... Kd7 {[%clk 0:00:15.8]} 39. b5 {[%clk 0:01:20.1]} 39...
Bd8 {[%clk 0:00:12.3]} 40. f5 {[%clk 0:01:17]} 40... exf5 {[%clk 0:00:12.1]} 41.
Bxf5+ {[%clk 0:01:17.9]} 41... Ke7 {[%clk 0:00:11.7]} 42. b6 {[%clk 0:01:11.3]}
42... Rd1+ {[%clk 0:00:11.6]} 43. Kc3 {[%clk 0:01:08]} 43... Rc1+ {[%clk
0:00:11]} 44. Bc2 {[%clk 0:01:07.5]} 44... Kd7 {[%clk 0:00:09.7]} 45. b7 {[%clk
0:00:59.1]} 45... Kc7 {[%clk 0:00:07.3]} 46. Rg7+ {[%clk 0:00:59.4]} 46... Kb8
{[%clk 0:00:07.4]} 47. Rg8 {[%clk 0:00:54]} 1-0

[Event "Early-Titled-Tuesday-Blitz-March-26-2024"]
[Site "Chess.com"]
[Date "2024.03.26"]
[Round "11"]
[White "Kavyev_Ruslan"]
[Black "Kotlyar_K"]
[Result "1/2-1/2"]
[WhiteElo "2385"]
[BlackElo "2551"]
[TimeControl "180+1"]
[EndTime "10:04:44 PDT"]
[Termination "Game drawn by repetition"]

1. d4 {[%clk 0:03:00.9]} 1... Nf6 {[%clk 0:02:56]} 2. c4 {[%clk 0:03:00.8]} 2...
g6 {[%clk 0:02:51.5]} 3. Nf3 {[%clk 0:03:00.2]} 3... Bg7 {[%clk 0:02:48.8]} 4.
g3 {[%clk 0:03:00.2]} 4... c6 {[%clk 0:02:48.3]} 5. Bg2 {[%clk 0:02:59.9]} 5...
d5 {[%clk 0:02:49.2]} 6. O-O {[%clk 0:02:59.9]} 6... O-O {[%clk 0:02:49.7]} 7.
Qb3 {[%clk 0:02:55.3]} 7... Qb6 {[%clk 0:02:20.8]} 8. c5 {[%clk 0:02:54.9]} 8...
Qxb3 {[%clk 0:02:16.6]} 9. axb3 {[%clk 0:02:55.8]} 9... Na6 {[%clk 0:02:15.6]}
10. Bd2 {[%clk 0:02:44.5]} 10... Nd7 {[%clk 0:02:09.6]} 11. b4 {[%clk
0:02:23.5]} 11... e5 {[%clk 0:01:58.5]} 12. dxe5 {[%clk 0:02:23.5]} 12... Nxe5
{[%clk 0:01:50.6]} 13. Nxe5 {[%clk 0:02:19.5]} 13... Bxe5 {[%clk 0:01:51.5]} 14.
Bc3 {[%clk 0:02:19.6]} 14... d4 {[%clk 0:01:39.3]} 15. Bd2 {[%clk 0:02:15]}
15... Be6 {[%clk 0:01:39.8]} 16. Na3 {[%clk 0:02:13.5]} 16... Rad8 {[%clk
0:01:24.9]} 17. Be4 {[%clk 0:02:05.7]} 17... Nc7 {[%clk 0:01:11.4]} 18. Bd3
{[%clk 0:02:02.7]} 18... a6 {[%clk 0:01:11.6]} 19. Nc4 {[%clk 0:01:55.9]} 19...
Bg7 {[%clk 0:01:07.2]} 20. Kg2 {[%clk 0:01:50.6]} 20... Nd5 {[%clk 0:01:06.9]}
21. Rfe1 {[%clk 0:01:38.1]} 21... f5 {[%clk 0:00:57.7]} 22. Nd6 {[%clk
0:01:26.3]} 22... Rd7 {[%clk 0:00:46.9]} 23. Nc4 {[%clk 0:01:09.3]} 23... f4
{[%clk 0:00:37.8]} 24. Ra4 {[%clk 0:01:03.1]} 24... Bg4 {[%clk 0:00:23.4]} 25.
f3 {[%clk 0:01:01]} 25... Be6 {[%clk 0:00:23.2]} 26. gxf4 {[%clk 0:00:56.3]}
26... Nxf4+ {[%clk 0:00:22.5]} 27. Bxf4 {[%clk 0:00:56.3]} 27... Rxf4 {[%clk
0:00:22.9]} 28. Nd6 {[%clk 0:00:51.7]} 28... Bd5 {[%clk 0:00:20.6]} 29. Ne4
{[%clk 0:00:49.9]} 29... h6 {[%clk 0:00:19.3]} 30. Kg3 {[%clk 0:00:48.4]} 30...
g5 {[%clk 0:00:19.2]} 31. Kg2 {[%clk 0:00:47.5]} 31... Rff7 {[%clk 0:00:18.8]}
32. h3 {[%clk 0:00:47]} 32... Be5 {[%clk 0:00:18.6]} 33. Ng3 {[%clk 0:00:45.1]}
33... Bf4 {[%clk 0:00:18.2]} 34. Rb1 {[%clk 0:00:41.7]} 34... Rfe7 {[%clk
0:00:15.7]} 35. Nf5 {[%clk 0:00:40.4]} 35... Re6 {[%clk 0:00:16]} 36. Ng3 {[%clk
0:00:39.2]} 36... Rf7 {[%clk 0:00:12.3]} 37. Ne4 {[%clk 0:00:37.6]} 37... Rfe7
{[%clk 0:00:11.4]} 38. Kf2 {[%clk 0:00:35.9]} 38... Kg7 {[%clk 0:00:11.8]} 39.
Kg2 {[%clk 0:00:36.4]} 39... Be3 {[%clk 0:00:12.2]} 40. Ng3 {[%clk 0:00:35.9]}
40... Kf8 {[%clk 0:00:08.9]} 41. Ne4 {[%clk 0:00:34.3]} 41... Bf4 {[%clk
0:00:08.1]} 42. Kf2 {[%clk 0:00:33.9]} 42... Be3+ {[%clk 0:00:08.1]} 43. Kg2
{[%clk 0:00:34.3]} 43... Bf4 {[%clk 0:00:09]} 44. Kf2 {[%clk 0:00:34.6]} 44...
Be3+ {[%clk 0:00:09.5]} 45. Kg2 {[%clk 0:00:34.5]} 1/2-1/2